[Event "Early-Titled-Tuesday-Blitz-February-13-2024"]
[Site "Chess.com"]
[Date "2024.02.13"]
[Round "1"]
[White "Philosopherrr"]
[Black "kiCaps"]
[Result "1-0"]
[WhiteElo "2396"]
[BlackElo "2696"]
[TimeControl "180+1"]
[EndTime "8:07:15 PST"]
[Termination "Philosopherrr won by resignation"]

1. e4 {[%clk 0:02:27.8]} 1... e6 {[%clk 0:02:58.6]} 2. d4 {[%clk 0:02:27.9]}
2... d5 {[%clk 0:02:58.2]} 3. Nc3 {[%clk 0:02:28.3]} 3... Bb4 {[%clk 0:02:57.4]}
4. e5 {[%clk 0:02:25.3]} 4... Ne7 {[%clk 0:02:57.8]} 5. Bd2 {[%clk 0:02:25.4]}
5... O-O {[%clk 0:02:57.1]} 6. Nce2 {[%clk 0:02:20.1]} 6... Bxd2+ {[%clk
0:02:55.6]} 7. Qxd2 {[%clk 0:02:21]} 7... c5 {[%clk 0:02:55.8]} 8. c3 {[%clk
0:02:21.7]} 8... Nbc6 {[%clk 0:02:56.3]} 9. f4 {[%clk 0:02:16.4]} 9... f6 {[%clk
0:02:56.2]} 10. Nf3 {[%clk 0:02:16.7]} 10... Bd7 {[%clk 0:02:52.8]} 11. exf6
{[%clk 0:02:16.3]} 11... Rxf6 {[%clk 0:02:51.9]} 12. dxc5 {[%clk 0:02:16.8]}
12... Qc7 {[%clk 0:02:47.5]} 13. g3 {[%clk 0:02:11.8]} 13... e5 {[%clk
0:02:29.7]} 14. O-O-O {[%clk 0:02:03.5]} 14... e4 {[%clk 0:02:22.6]} 15. Nfd4
{[%clk 0:02:03.3]} 15... Nxd4 {[%clk 0:02:14.3]} 16. Qxd4 {[%clk 0:01:58.8]}
16... Ra6 {[%clk 0:02:04.6]} 17. Kb1 {[%clk 0:01:55.8]} 17... Ra4 {[%clk
0:01:57.2]} 18. Qe3 {[%clk 0:01:54.2]} 18... Nf5 {[%clk 0:01:51.7]} 19. Qd2
{[%clk 0:01:54.4]} 19... Be6 {[%clk 0:01:48.8]} 20. b3 {[%clk 0:01:50]} 20...
Ra3 {[%clk 0:01:41.7]} 21. Nd4 {[%clk 0:01:47.4]} 21... Nxd4 {[%clk 0:01:39.6]}
22. cxd4 {[%clk 0:01:47.9]} 22... b6 {[%clk 0:01:34.4]} 23. Qb4 {[%clk
0:01:46.5]} 23... Ra5 {[%clk 0:01:33.6]} 24. Rc1 {[%clk 0:01:35.6]} 24... Rc8
{[%clk 0:01:30.6]} 25. Bb5 {[%clk 0:01:29.4]} 25... Bf5 {[%clk 0:01:07]} 26. Kb2
{[%clk 0:01:22.5]} 26... Qd8 {[%clk 0:01:03.1]} 27. a4 {[%clk 0:01:18.3]} 27...
h6 {[%clk 0:00:57.3]} 28. cxb6 {[%clk 0:01:14.8]} 28... axb6 {[%clk 0:00:58.2]}
29. Rxc8 {[%clk 0:01:14.7]} 29... Bxc8 {[%clk 0:00:51]} 30. Rc1 {[%clk 0:01:14]}
30... Bg4 {[%clk 0:00:50.7]} 31. Qc3 {[%clk 0:01:06.3]} 31... Qf6 {[%clk
0:00:46.3]} 32. Qe3 {[%clk 0:01:01.7]} 32... Ra7 {[%clk 0:00:44.1]} 33. Rc6
{[%clk 0:01:02.2]} 33... Qd8 {[%clk 0:00:43.2]} 34. Qc3 {[%clk 0:00:59]} 34...
Re7 {[%clk 0:00:42.4]} 35. Qe3 {[%clk 0:00:48.5]} 35... Kh7 {[%clk 0:00:41.2]}
36. Rc3 {[%clk 0:00:44.6]} 36... Qd6 {[%clk 0:00:39.1]} 37. Rc6 {[%clk
0:00:40.3]} 37... Qb8 {[%clk 0:00:38.1]} 38. Bf1 {[%clk 0:00:40]} 38... Rc7
{[%clk 0:00:35.6]} 39. Qc3 {[%clk 0:00:38.1]} 39... Rxc6 {[%clk 0:00:32.4]} 40.
Qxc6 {[%clk 0:00:38.3]} 40... e3 {[%clk 0:00:31.6]} 41. Bd3+ {[%clk 0:00:35.8]}
41... Kh8 {[%clk 0:00:23.6]} 42. Qg6 {[%clk 0:00:35.5]} 42... Kg8 {[%clk
0:00:20.3]} 43. Qxg4 {[%clk 0:00:35.2]} 43... Qd6 {[%clk 0:00:19.1]} 44. Qc8+
{[%clk 0:00:34.9]} 44... Kf7 {[%clk 0:00:19]} 45. Qf5+ {[%clk 0:00:35.5]} 45...
Kg8 {[%clk 0:00:19]} 46. Qe5 {[%clk 0:00:36.1]} 46... Qxe5 {[%clk 0:00:19.3]}
47. fxe5 {[%clk 0:00:35.7]} 1-0

[Event "Early-Titled-Tuesday-Blitz-February-13-2024"]
[Site "Chess.com"]
[Date "2024.02.13"]
[Round "1"]
[White "Thunderbolt135"]
[Black "Zampronha1971"]
[Result "1-0"]
[WhiteElo "2653"]
[BlackElo "2321"]
[TimeControl "180+1"]
[EndTime "8:07:15 PST"]
[Termination "Thunderbolt135 won by resignation"]

1. e4 {[%clk 0:03:00.9]} 1... c5 {[%clk 0:02:58.7]} 2. Nf3 {[%clk 0:03:01.3]}
2... e6 {[%clk 0:02:59.3]} 3. Nc3 {[%clk 0:03:01.7]} 3... Nc6 {[%clk 0:02:58.8]}
4. d4 {[%clk 0:02:59.2]} 4... cxd4 {[%clk 0:02:59.7]} 5. Nxd4 {[%clk 0:03:00.1]}
5... Qc7 {[%clk 0:03:00.2]} 6. f4 {[%clk 0:02:58.3]} 6... a6 {[%clk 0:02:58.4]}
7. Nxc6 {[%clk 0:02:58]} 7... bxc6 {[%clk 0:02:57.4]} 8. Bd3 {[%clk 0:02:56.9]}
8... d5 {[%clk 0:02:58]} 9. O-O {[%clk 0:02:57.5]} 9... Nf6 {[%clk 0:02:55.6]}
10. Qe2 {[%clk 0:02:52.4]} 10... Be7 {[%clk 0:02:55.2]} 11. e5 {[%clk
0:02:27.8]} 11... Nd7 {[%clk 0:02:54]} 12. Na4 {[%clk 0:02:28.7]} 12... O-O
{[%clk 0:02:35.1]} 13. b3 {[%clk 0:02:23.5]} 13... f5 {[%clk 0:02:33.3]} 14.
exf6 {[%clk 0:02:18.1]} 14... Nxf6 {[%clk 0:02:33.9]} 15. Bb2 {[%clk 0:02:17.5]}
15... Bd6 {[%clk 0:02:31.6]} 16. Be5 {[%clk 0:02:12.6]} 16... Bd7 {[%clk
0:02:25.3]} 17. Kh1 {[%clk 0:02:08.1]} 17... c5 {[%clk 0:02:22.3]} 18. Nb2
{[%clk 0:02:00.4]} 18... a5 {[%clk 0:02:18]} 19. Rad1 {[%clk 0:01:48.5]} 19...
a4 {[%clk 0:02:17.7]} 20. Bxd6 {[%clk 0:01:48.9]} 20... Qxd6 {[%clk 0:02:17.3]}
21. Nc4 {[%clk 0:01:49.6]} 21... Qc7 {[%clk 0:02:14.4]} 22. Ne5 {[%clk 0:01:50]}
22... axb3 {[%clk 0:02:12.6]} 23. axb3 {[%clk 0:01:50.9]} 23... Rae8 {[%clk
0:02:02.6]} 24. Ra1 {[%clk 0:01:49.2]} 24... Bc8 {[%clk 0:01:59.6]} 25. Rf3
{[%clk 0:01:36.3]} 25... Nd7 {[%clk 0:01:45.7]} 26. Bxh7+ {[%clk 0:01:22.2]}
26... Kxh7 {[%clk 0:01:43.9]} 27. Rh3+ {[%clk 0:01:23.1]} 27... Kg8 {[%clk
0:01:44.4]} 28. Qh5 {[%clk 0:01:22.7]} 28... Nxe5 {[%clk 0:01:35.7]} 29. fxe5
{[%clk 0:01:23.6]} 29... Ba6 {[%clk 0:00:56.4]} 30. Qh7+ {[%clk 0:01:18.3]}
30... Kf7 {[%clk 0:00:55.1]} 31. Rf3+ {[%clk 0:01:07.9]} 31... Ke7 {[%clk
0:00:54.7]} 32. Qxg7+ {[%clk 0:01:08.8]} 32... Kd8 {[%clk 0:00:55]} 33. Qxc7+
{[%clk 0:01:09.3]} 33... Kxc7 {[%clk 0:00:55.2]} 34. Rxa6 {[%clk 0:01:10.2]}
34... Ra8 {[%clk 0:00:48.3]} 35. Rxa8 {[%clk 0:00:53.7]} 35... Rxa8 {[%clk
0:00:49.2]} 36. h4 {[%clk 0:00:52.4]} 36... d4 {[%clk 0:00:45.9]} 37. h5 {[%clk
0:00:50.9]} 37... Kc6 {[%clk 0:00:45]} 38. g4 {[%clk 0:00:48.3]} 38... Rh8
{[%clk 0:00:41.9]} 39. c4 {[%clk 0:00:37.6]} 39... dxc3 {[%clk 0:00:39.8]} 40.
Rxc3 {[%clk 0:00:37.6]} 40... Kd5 {[%clk 0:00:40.7]} 41. Kg2 {[%clk 0:00:38.1]}
41... Kd4 {[%clk 0:00:39.1]} 42. Rc4+ {[%clk 0:00:37.6]} 42... Kd5 {[%clk
0:00:38.1]} 43. Kg3 {[%clk 0:00:36.7]} 43... Rb8 {[%clk 0:00:38.7]} 44. Rc3
{[%clk 0:00:36.9]} 44... Kd4 {[%clk 0:00:38.8]} 45. Rf3 {[%clk 0:00:35.2]} 45...
Kxe5 {[%clk 0:00:38.9]} 46. g5 {[%clk 0:00:34.9]} 46... Ke4 {[%clk 0:00:39.1]}
47. h6 {[%clk 0:00:32.8]} 47... Rg8 {[%clk 0:00:36.3]} 48. Kg4 {[%clk
0:00:32.3]} 48... e5 {[%clk 0:00:34]} 49. h7 {[%clk 0:00:32.5]} 1-0

[Event "Early-Titled-Tuesday-Blitz-February-13-2024"]
[Site "Chess.com"]
[Date "2024.02.13"]
[Round "1"]
[White "TimGrutter03"]
[Black "Louis-Paulsen-Fan"]
[Result "1-0"]
[WhiteElo "2628"]
[BlackElo "2278"]
[TimeControl "180+1"]
[EndTime "8:07:15 PST"]
[Termination "TimGrutter03 won by resignation"]

1. c4 {[%clk 0:03:00.5]} 1... e6 {[%clk 0:02:58.1]} 2. Nc3 {[%clk 0:02:59.2]}
2... d5 {[%clk 0:02:58.5]} 3. cxd5 {[%clk 0:02:59.3]} 3... exd5 {[%clk
0:02:59.2]} 4. d4 {[%clk 0:02:59.7]} 4... c5 {[%clk 0:02:59.6]} 5. Nf3 {[%clk
0:02:58.4]} 5... Nc6 {[%clk 0:02:59.8]} 6. g3 {[%clk 0:02:58.3]} 6... c4 {[%clk
0:03:00.3]} 7. Bg2 {[%clk 0:02:57.5]} 7... Bb4 {[%clk 0:03:01]} 8. O-O {[%clk
0:02:57.5]} 8... Nge7 {[%clk 0:03:01.6]} 9. Ne5 {[%clk 0:02:55.7]} 9... O-O
{[%clk 0:03:01.3]} 10. Nxc6 {[%clk 0:02:54.8]} 10... bxc6 {[%clk 0:03:02.2]} 11.
Na4 {[%clk 0:02:50.7]} 11... Bf5 {[%clk 0:02:37.3]} 12. a3 {[%clk 0:02:48.9]}
12... Bd6 {[%clk 0:02:36.9]} 13. Bd2 {[%clk 0:02:44.9]} 13... Rb8 {[%clk
0:02:30.5]} 14. f3 {[%clk 0:02:39.7]} 14... Qd7 {[%clk 0:02:28.5]} 15. e4 {[%clk
0:02:38.6]} 15... dxe4 {[%clk 0:02:20.8]} 16. fxe4 {[%clk 0:02:38.5]} 16... Bh3
{[%clk 0:02:20.2]} 17. Bc3 {[%clk 0:02:30.8]} 17... Bxg2 {[%clk 0:02:19.3]} 18.
Kxg2 {[%clk 0:02:31.7]} 18... Ng6 {[%clk 0:02:08]} 19. Qe2 {[%clk 0:02:24.8]}
19... Qe6 {[%clk 0:02:02.5]} 20. Rae1 {[%clk 0:02:08.3]} 20... Rfe8 {[%clk
0:01:57.6]} 21. Qc2 {[%clk 0:01:57.1]} 21... Qg4 {[%clk 0:01:48.6]} 22. Kh1
{[%clk 0:01:56.6]} 22... h5 {[%clk 0:01:38.3]} 23. e5 {[%clk 0:01:55]} 23... Bf8
{[%clk 0:01:33.1]} 24. Qg2 {[%clk 0:01:30.1]} 24... Qe6 {[%clk 0:01:27.6]} 25.
Qe4 {[%clk 0:01:19.2]} 25... Qd5 {[%clk 0:01:12.4]} 26. Rf5 {[%clk 0:01:18.8]}
26... Qb5 {[%clk 0:01:03.7]} 27. Qc2 {[%clk 0:01:11.5]} 27... Qd5+ {[%clk
0:01:01]} 28. Kg1 {[%clk 0:01:10]} 28... h4 {[%clk 0:01:01.1]} 29. e6 {[%clk
0:01:00.9]} 29... Rxe6 {[%clk 0:00:49.3]} 30. Rxd5 {[%clk 0:01:00.8]} 30...
Rxe1+ {[%clk 0:00:49.4]} 31. Bxe1 {[%clk 0:01:00.4]} 31... cxd5 {[%clk 0:00:49]}
32. Bb4 {[%clk 0:00:56.9]} 32... Bxb4 {[%clk 0:00:47.8]} 33. axb4 {[%clk
0:00:57.8]} 33... Rxb4 {[%clk 0:00:47.9]} 34. Nc5 {[%clk 0:00:57.2]} 34... hxg3
{[%clk 0:00:46.4]} 35. hxg3 {[%clk 0:00:57.2]} 35... Rb8 {[%clk 0:00:43.6]} 36.
Kg2 {[%clk 0:00:39]} 36... Ne7 {[%clk 0:00:42.2]} 37. b3 {[%clk 0:00:34]} 37...
Nc6 {[%clk 0:00:33.8]} 38. bxc4 {[%clk 0:00:33.6]} 38... Nxd4 {[%clk 0:00:33.3]}
39. Qc3 {[%clk 0:00:30.9]} 39... Ne2 {[%clk 0:00:29.1]} 40. Qe5 {[%clk
0:00:30.6]} 40... Rc8 {[%clk 0:00:24.9]} 41. cxd5 {[%clk 0:00:19.5]} 41... Rxc5
{[%clk 0:00:23.8]} 42. Qxe2 {[%clk 0:00:18.9]} 42... Rxd5 {[%clk 0:00:24.1]} 43.
Qe8+ {[%clk 0:00:18.7]} 43... Kh7 {[%clk 0:00:24.2]} 44. Qe4+ {[%clk 0:00:19.6]}
1-0

[Event "Early-Titled-Tuesday-Blitz-February-13-2024"]
[Site "Chess.com"]
[Date "2024.02.13"]
[Round "1"]
[White "wadsy27"]
[Black "cycygogne"]
[Result "1-0"]
[WhiteElo "2627"]
[BlackElo "2271"]
[TimeControl "180+1"]
[EndTime "8:07:16 PST"]
[Termination "wadsy27 won by resignation"]

1. e4 {[%clk 0:03:00]} 1... d5 {[%clk 0:02:59.6]} 2. exd5 {[%clk 0:02:58]} 2...
Qxd5 {[%clk 0:03:00.5]} 3. Nc3 {[%clk 0:02:57.4]} 3... Qd6 {[%clk 0:03:00.7]} 4.
Nf3 {[%clk 0:02:56.4]} 4... Bg4 {[%clk 0:03:00.2]} 5. Be2 {[%clk 0:02:52.4]}
5... Nf6 {[%clk 0:03:00.1]} 6. O-O {[%clk 0:02:50.2]} 6... Nc6 {[%clk
0:02:55.8]} 7. h3 {[%clk 0:02:46.9]} 7... Bh5 {[%clk 0:02:54.9]} 8. d3 {[%clk
0:02:34.1]} 8... O-O-O {[%clk 0:02:49.9]} 9. Be3 {[%clk 0:02:29.3]} 9... e5
{[%clk 0:02:44]} 10. Ng5 {[%clk 0:02:24.9]} 10... Bg6 {[%clk 0:02:39.5]} 11.
Nge4 {[%clk 0:02:12.4]} 11... Nxe4 {[%clk 0:02:38.9]} 12. Nxe4 {[%clk
0:02:10.1]} 12... Bxe4 {[%clk 0:02:32.5]} 13. dxe4 {[%clk 0:02:09.9]} 13... Qxd1
{[%clk 0:02:25.9]} 14. Rfxd1 {[%clk 0:02:08]} 14... Bb4 {[%clk 0:02:26.1]} 15.
c3 {[%clk 0:01:22.4]} 15... Ba5 {[%clk 0:02:26.1]} 16. b4 {[%clk 0:01:21.1]}
16... Bb6 {[%clk 0:02:26.4]} 17. Bxb6 {[%clk 0:01:21]} 17... axb6 {[%clk
0:02:21.7]} 18. a4 {[%clk 0:01:21.2]} 18... Rxd1+ {[%clk 0:02:18.7]} 19. Bxd1
{[%clk 0:01:06.8]} 19... Rd8 {[%clk 0:02:17.5]} 20. Bb3 {[%clk 0:01:06.3]} 20...
f6 {[%clk 0:02:14.6]} 21. Bd5 {[%clk 0:00:48.4]} 21... Ne7 {[%clk 0:02:05.3]}
22. Be6+ {[%clk 0:00:48.5]} 22... Kb8 {[%clk 0:02:05.1]} 23. a5 {[%clk
0:00:45.9]} 23... bxa5 {[%clk 0:02:03.6]} 24. bxa5 {[%clk 0:00:42.9]} 24... Rd3
{[%clk 0:01:59.6]} 25. Ra3 {[%clk 0:00:39.6]} 25... Ka7 {[%clk 0:01:42.1]} 26.
Bc4 {[%clk 0:00:39.2]} 26... Rd1+ {[%clk 0:01:40.4]} 27. Kh2 {[%clk 0:00:39.3]}
27... Rd2 {[%clk 0:01:39]} 28. Kg3 {[%clk 0:00:38.6]} 28... Ng6 {[%clk
0:01:35.9]} 29. a6 {[%clk 0:00:35.2]} 29... bxa6 {[%clk 0:01:34.8]} 30. Bxa6
{[%clk 0:00:22.8]} 30... Kb6 {[%clk 0:01:32.5]} 31. Bc4 {[%clk 0:00:18.3]} 31...
Nf4 {[%clk 0:01:27.5]} 32. Ra8 {[%clk 0:00:18]} 32... Nd3 {[%clk 0:01:21.7]} 33.
Bxd3 {[%clk 0:00:17]} 33... Rxd3+ {[%clk 0:01:21.8]} 34. Kg4 {[%clk 0:00:15.8]}
34... Rxc3 {[%clk 0:01:21.5]} 35. Rg8 {[%clk 0:00:16.4]} 35... Rc2 {[%clk
0:01:19]} 36. Kg3 {[%clk 0:00:15.6]} 36... c5 {[%clk 0:01:16.6]} 37. Rxg7 {[%clk
0:00:15.5]} 37... c4 {[%clk 0:01:15.9]} 38. Rxh7 {[%clk 0:00:15.8]} 38... Rd2
{[%clk 0:01:13.5]} 39. Rh8 {[%clk 0:00:15.3]} 39... Rd7 {[%clk 0:01:11.8]} 40.
Rc8 {[%clk 0:00:11]} 40... Kb5 {[%clk 0:01:11.9]} 41. h4 {[%clk 0:00:09.8]}
41... Kb4 {[%clk 0:01:11.9]} 42. h5 {[%clk 0:00:09.8]} 42... c3 {[%clk
0:01:11.2]} 43. Kg4 {[%clk 0:00:09.9]} 43... Kb3 {[%clk 0:01:11]} 44. h6 {[%clk
0:00:09.9]} 44... c2 {[%clk 0:01:11.4]} 45. Kf5 {[%clk 0:00:10]} 45... Kb2
{[%clk 0:01:11.6]} 46. Kg6 {[%clk 0:00:09.4]} 46... c1=Q {[%clk 0:01:07.9]} 47.
Rxc1 {[%clk 0:00:09.4]} 47... Kxc1 {[%clk 0:01:08.4]} 48. h7 {[%clk 0:00:10.1]}
48... Rd8 {[%clk 0:00:57.7]} 49. Kxf6 {[%clk 0:00:10.3]} 49... Kd2 {[%clk
0:00:55.8]} 50. g4 {[%clk 0:00:10.5]} 50... Kd3 {[%clk 0:00:52.2]} 51. g5 {[%clk
0:00:10.9]} 51... Kxe4 {[%clk 0:00:52.3]} 52. g6 {[%clk 0:00:11.2]} 52... Kf4
{[%clk 0:00:50.3]} 53. g7 {[%clk 0:00:11.4]} 53... Rd6+ {[%clk 0:00:50.5]} 54.
Ke7 {[%clk 0:00:11.7]} 54... Rg6 {[%clk 0:00:50.6]} 55. g8=Q {[%clk 0:00:12]}
1-0

[Event "Early-Titled-Tuesday-Blitz-February-13-2024"]
[Site "Chess.com"]
[Date "2024.02.13"]
[Round "1"]
[White "ChessSG1"]
[Black "Fighterman91"]
[Result "0-1"]
[WhiteElo "2427"]
[BlackElo "2769"]
[TimeControl "180+1"]
[EndTime "8:07:18 PST"]
[Termination "Fighterman91 won on time"]

1. c4 {[%clk 0:03:00.9]} 1... e5 {[%clk 0:03:00]} 2. g3 {[%clk 0:03:00.7]} 2...
Nf6 {[%clk 0:02:53.1]} 3. Bg2 {[%clk 0:03:00.4]} 3... c6 {[%clk 0:02:53.7]} 4.
Nf3 {[%clk 0:02:55.6]} 4... e4 {[%clk 0:02:54.1]} 5. Nd4 {[%clk 0:02:56.1]} 5...
d5 {[%clk 0:02:54.8]} 6. d3 {[%clk 0:02:55.2]} 6... exd3 {[%clk 0:02:43.2]} 7.
cxd5 {[%clk 0:02:43.3]} 7... Nxd5 {[%clk 0:02:42.4]} 8. Qxd3 {[%clk 0:02:24]}
8... Bb4+ {[%clk 0:02:35.8]} 9. Nc3 {[%clk 0:02:14.4]} 9... O-O {[%clk
0:02:34.6]} 10. O-O {[%clk 0:02:14.4]} 10... Nf6 {[%clk 0:02:29.4]} 11. h3
{[%clk 0:01:39.5]} 11... Re8 {[%clk 0:02:26.9]} 12. Be3 {[%clk 0:01:24.2]} 12...
Nbd7 {[%clk 0:02:19.2]} 13. Nc2 {[%clk 0:01:07.9]} 13... Bf8 {[%clk 0:02:11.3]}
14. Rad1 {[%clk 0:01:07.4]} 14... Qa5 {[%clk 0:02:06.3]} 15. a3 {[%clk
0:00:45.5]} 15... Ne5 {[%clk 0:02:05.9]} 16. Qd4 {[%clk 0:00:40]} 16... Bf5
{[%clk 0:02:03.8]} 17. b4 {[%clk 0:00:27.6]} 17... Qc7 {[%clk 0:01:50.1]} 18.
Na1 {[%clk 0:00:22.9]} 18... Red8 {[%clk 0:01:36]} 19. Qf4 {[%clk 0:00:22.8]}
19... Bg6 {[%clk 0:01:23.4]} 20. Rc1 {[%clk 0:00:22.4]} 20... Bd6 {[%clk
0:01:21.6]} 21. Nb5 {[%clk 0:00:22.4]} 21... cxb5 {[%clk 0:01:10.6]} 22. Rxc7
{[%clk 0:00:21.7]} 22... Bxc7 {[%clk 0:01:11.5]} 23. Qh4 {[%clk 0:00:20.1]}
23... Nd5 {[%clk 0:00:57.8]} 24. Bg5 {[%clk 0:00:19.5]} 24... f6 {[%clk
0:00:57.7]} 25. Bd2 {[%clk 0:00:17.4]} 25... Nc4 {[%clk 0:00:54.1]} 26. Qd4
{[%clk 0:00:08.4]} 26... Ndb6 {[%clk 0:00:33.3]} 27. Qc5 {[%clk 0:00:07.5]}
27... Bd6 {[%clk 0:00:33.9]} 28. Qxb5 {[%clk 0:00:06.1]} 28... Nxd2 {[%clk
0:00:34.5]} 29. Rd1 {[%clk 0:00:04]} 29... Bf8 {[%clk 0:00:32.3]} 30. Bxb7
{[%clk 0:00:03.5]} 30... Rab8 {[%clk 0:00:32.9]} 31. Qc6 {[%clk 0:00:02.4]}
31... Rd7 {[%clk 0:00:28.1]} 32. Nc2 {[%clk 0:00:02.1]} 32... Nf3+ {[%clk
0:00:19.2]} 0-1

[Event "Early-Titled-Tuesday-Blitz-February-13-2024"]
[Site "Chess.com"]
[Date "2024.02.13"]
[Round "1"]
[White "Harry_Rakkel"]
[Black "Hui_Li_Macau"]
[Result "1-0"]
[WhiteElo "2690"]
[BlackElo "2362"]
[TimeControl "180+1"]
[EndTime "8:07:18 PST"]
[Termination "Harry_Rakkel won on time"]

1. e4 {[%clk 0:02:57.5]} 1... e5 {[%clk 0:02:59.6]} 2. Nf3 {[%clk 0:02:56.4]}
2... Nf6 {[%clk 0:03:00.1]} 3. Nc3 {[%clk 0:02:42.6]} 3... Nc6 {[%clk
0:02:59.7]} 4. g3 {[%clk 0:02:42.3]} 4... d5 {[%clk 0:02:59.5]} 5. exd5 {[%clk
0:02:43.2]} 5... Nxd5 {[%clk 0:03:00.4]} 6. Bg2 {[%clk 0:02:42.7]} 6... Nxc3
{[%clk 0:03:01]} 7. bxc3 {[%clk 0:02:43.1]} 7... Bd6 {[%clk 0:03:01.9]} 8. O-O
{[%clk 0:02:42.6]} 8... O-O {[%clk 0:03:01.8]} 9. Re1 {[%clk 0:02:42.6]} 9...
Bg4 {[%clk 0:02:56.7]} 10. h3 {[%clk 0:02:41.3]} 10... Bh5 {[%clk 0:02:56.8]}
11. Rb1 {[%clk 0:02:40.3]} 11... Rb8 {[%clk 0:02:56.5]} 12. g4 {[%clk
0:02:23.8]} 12... Bg6 {[%clk 0:02:56]} 13. d3 {[%clk 0:02:14.5]} 13... f5 {[%clk
0:02:38]} 14. Ng5 {[%clk 0:02:12.4]} 14... Qd7 {[%clk 0:02:16]} 15. Bd5+ {[%clk
0:01:39]} 15... Kh8 {[%clk 0:02:15.7]} 16. Be6 {[%clk 0:01:36.2]} 16... Qe7
{[%clk 0:02:08.3]} 17. gxf5 {[%clk 0:01:36.1]} 17... Bxf5 {[%clk 0:02:00.3]} 18.
Bxf5 {[%clk 0:01:33.1]} 18... Rxf5 {[%clk 0:01:59.7]} 19. Qg4 {[%clk 0:01:33.7]}
19... Rbf8 {[%clk 0:01:32.7]} 20. Rxb7 {[%clk 0:01:07.3]} 20... Nd8 {[%clk
0:01:15.1]} 21. Rb8 {[%clk 0:01:04.1]} 21... Rxf2 {[%clk 0:00:55.8]} 22. Qe4
{[%clk 0:00:55.8]} 22... g6 {[%clk 0:00:45.5]} 23. Rxd8 {[%clk 0:00:41.6]} 23...
Qxd8 {[%clk 0:00:38.3]} 24. Ne6 {[%clk 0:00:41.6]} 24... Qf6 {[%clk 0:00:27.3]}
25. Nxf8 {[%clk 0:00:40.4]} 25... Qxf8 {[%clk 0:00:21]} 26. Be3 {[%clk
0:00:38.7]} 26... Rxc2 {[%clk 0:00:13.1]} 27. Rf1 {[%clk 0:00:38.3]} 27... Qc8
{[%clk 0:00:09.2]} 28. Bg5 {[%clk 0:00:30.3]} 28... Qxh3 {[%clk 0:00:02.7]} 29.
Bf6+ {[%clk 0:00:29.3]} 29... Kg8 {[%clk 0:00:02.8]} 30. Qa8+ {[%clk 0:00:15.4]}
30... Kf7 {[%clk 0:00:01.8]} 31. Bg5+ {[%clk 0:00:14.6]} 1-0

[Event "Early-Titled-Tuesday-Blitz-February-13-2024"]
[Site "Chess.com"]
[Date "2024.02.13"]
[Round "1"]
[White "Rsnr"]
[Black "kecalk"]
[Result "1-0"]
[WhiteElo "2905"]
[BlackElo "2499"]
[TimeControl "180+1"]
[EndTime "8:07:19 PST"]
[Termination "Rsnr won on time"]

1. Nf3 {[%clk 0:03:00.3]} 1... Nf6 {[%clk 0:02:57.9]} 2. c4 {[%clk 0:03:00.2]}
2... e6 {[%clk 0:02:57.5]} 3. e3 {[%clk 0:02:55.6]} 3... c5 {[%clk 0:02:55.4]}
4. b3 {[%clk 0:02:53.7]} 4... d5 {[%clk 0:02:53.9]} 5. Bb2 {[%clk 0:02:54]} 5...
Nc6 {[%clk 0:02:53.6]} 6. cxd5 {[%clk 0:02:54.4]} 6... exd5 {[%clk 0:02:53.1]}
7. Be2 {[%clk 0:02:55.1]} 7... Bd6 {[%clk 0:02:51.5]} 8. O-O {[%clk 0:02:51.7]}
8... O-O {[%clk 0:02:51.5]} 9. d4 {[%clk 0:02:51.3]} 9... cxd4 {[%clk
0:02:51.3]} 10. Nxd4 {[%clk 0:02:52.2]} 10... Qe7 {[%clk 0:02:34.8]} 11. Nd2
{[%clk 0:02:37.5]} 11... Bd7 {[%clk 0:02:06.4]} 12. Rc1 {[%clk 0:02:37.3]} 12...
Ne5 {[%clk 0:01:57.9]} 13. N2f3 {[%clk 0:02:26.9]} 13... Rac8 {[%clk 0:01:45.3]}
14. Rxc8 {[%clk 0:02:23.3]} 14... Rxc8 {[%clk 0:01:44.7]} 15. Qa1 {[%clk
0:02:24.2]} 15... Ne4 {[%clk 0:01:28.3]} 16. Nxe5 {[%clk 0:01:48.3]} 16... Bxe5
{[%clk 0:01:11.6]} 17. Nf5 {[%clk 0:01:46]} 17... Bxh2+ {[%clk 0:01:06.6]} 18.
Kxh2 {[%clk 0:01:46.8]} 18... Bxf5 {[%clk 0:01:07.1]} 19. Kg1 {[%clk 0:01:41.7]}
19... Qg5 {[%clk 0:01:02.4]} 20. Rc1 {[%clk 0:01:13.9]} 20... h5 {[%clk
0:00:56.5]} 21. Rxc8+ {[%clk 0:01:12.2]} 21... Bxc8 {[%clk 0:00:57.4]} 22. Qd1
{[%clk 0:01:12.1]} 22... h4 {[%clk 0:00:51.9]} 23. Bf3 {[%clk 0:01:07.1]} 23...
Be6 {[%clk 0:00:17]} 24. Qd4 {[%clk 0:00:59.6]} 24... h3 {[%clk 0:00:13.2]} 25.
Qe5 {[%clk 0:00:53.7]} 25... Qxe5 {[%clk 0:00:05.5]} 26. Bxe5 {[%clk 0:00:54.6]}
26... hxg2 {[%clk 0:00:05.5]} 27. Kxg2 {[%clk 0:00:55.5]} 27... f6 {[%clk
0:00:04.7]} 28. Bd4 {[%clk 0:00:55]} 28... b6 {[%clk 0:00:04.9]} 29. Be2 {[%clk
0:00:54.7]} 29... Nd6 {[%clk 0:00:04.4]} 30. Bc3 {[%clk 0:00:44.3]} 30... Kf7
{[%clk 0:00:04.5]} 31. a4 {[%clk 0:00:38.6]} 31... a5 {[%clk 0:00:03]} 32. Bd4
{[%clk 0:00:38.6]} 32... Nc8 {[%clk 0:00:02.2]} 33. Ba6 {[%clk 0:00:39]} 33...
Ke7 {[%clk 0:00:02.1]} 34. Kg3 {[%clk 0:00:28.8]} 34... Kd7 {[%clk 0:00:01.7]}
35. Kh4 {[%clk 0:00:29]} 1-0